Cogmind - Beta 17 @@@ ROGUE MODE // 2026.08.10 @ 19:05:14 Player: Marc Result: Destroyed by G-34 Mercenary with Small Laser Performance ------------- Evolutions (1) 500 Regions Visited (2) 400 Robots Destroyed (21) 105 Value Destroyed (320) 320 Prototype IDs (2) 40 Alien Tech Used (0) 0 Bonus (0) 0 TOTAL SCORE: 1365 Bonus ------- None Cogmind --------- Core Integrity 0/400 Matter 44/300 Energy 100/100 System Corruption 0% Temperature Cool (6) Movement Core (50) Location -9/Materials Parts ------- > --- POWER (2) -------- (None) > --- PROPULSION (2) --- (None) > --- UTILITY (3) ------ Visual Processing Unit Targeting Computer > --- WEAPON (2) ------- (None) > --- INVENTORY (5) ---- Medium Armor Plating Peak State ------------ > --- POWER ------------ Light Ion Engine > --- PROPULSION ------- Aluminum Leg > --- UTILITY ---------- Visual Processing Unit Seismic Detector Medium Armor Plating > --- WEAPON ----------- Grenade Launcher Grenade Launcher > --- INVENTORY -------- Medium Laser Small Laser Assault Rifle Grenade Launcher [Rating: 9] Favorites ----------- Power Ion Engine Engine Ion Engine Propulsion Aluminum Leg Leg Aluminum Leg Hover Unit Backup Propulsion I Flight Unit Improved Flight Unit Utility Small Storage Unit Device Seismic Detector Storage Small Storage Unit Processor Visual Processing Unit Protection Medium Armor Plating Weapon Grenade Launcher Energy Gun Medium Laser Launcher Grenade Launcher Build | -11 -10 -9 ------- Run | Yrd Mat Mat Slots Evolved 2 | . . 2 Power 1 | . . 1 Propulsion . | . . . Utility 1 | . . 1 Weapon . | . . . Parts Attached 12 | . 5 7 Power 1 | . 1 . Engine 1 | . 1 . Core . | . . . Reactor . | . . . Propulsion 2 | . . 2 Treads . | . . . Leg . | . . . Wheel . | . . . Hover 1 | . . 1 Flight 1 | . . 1 Utility 4 | . 2 2 Device 1 | . 1 . Storage . | . . . Processor 2 | . 1 1 Hackware . | . . . Protection 1 | . . 1 Artifact . | . . . Weapon 5 | . 2 3 Energy Gun 2 | . . 2 Energy Cannon . | . . . Ballistic Gun . | . . . Ballistic Cannon . | . . . Launcher 3 | . 2 1 Special Weapon . | . . . Impact Weapon . | . . . Slashing Weapon . | . . . Piercing Weapon . | . . . Special Melee Weapon . | . . . Unidentified Prototypes 2 | . . 2 Parts Lost 10 | . 1 9 Power 1 | . . 1 Propulsion 3 | . 1 2 Utility 1 | . . 1 Weapon 5 | . . 5 Highest Loss Streak 8 | . 1 8 To Critical Strikes . | . . . Average Backups 4 | 6 5 3 Power . | 1 . . Propulsion . | 4 . . Utility . | . . . Weapon 3 | 1 3 2 Tool/Special . | . . . Unused Backups 5 | . 2 3 Power 2 | . 2 . Propulsion 1 | . . 1 Utility . | . . . Weapon 2 | . . 2 Tool/Special . | . . . Average Slot Usage (%) 71 | . 80 53 Engine 10 | . 14 4 Leg 15 | . 18 8 Device 4 | . 1 10 Storage 8 | . 12 . Processor 8 | . 4 15 Launcher 22 | . 26 14 Peak Build Rating 9 | 6 7 9 Average Rating 6 | 6 6 6 On Entrance 6 | 6 6 7 Avg Prop Armor Cover (%) . | . . . Naked Turns . | . . . Heaviest Build 16 | 13 16 10 Greatest Support 20 | 20 20 10 Greatest Overweight (x) 1 | . 1 1 Average Overweight (x) . | . . . Largest Inventory Capacity 8 | 8 8 5 Average Capacity 6 | 8 7 5 Most Carried 8 | 6 8 5 Average Carried 4 | 6 5 3 Final Capacity 8 | 8 5 5 Final Carried 6 | 6 4 1 Class Distribution -------------------- 100% | Mutant Dominant Class ---------------- Mutant | -10/Materials Mutant | -9/Materials Resources | -11 -10 -9 ----------- Run | Yrd Mat Mat Matter Collected 396 | 200 81 115 Remotely . | . . . Salvage Created 343 | . 138 205 Parts 21 | . 10 11 Haulers Intercepted 1 | . . 1 Recyclers Shooed 1 | . . 1 Parts Field Recycled . | . . . Retrieved Matter . | . . . Parts Self-Destructed . | . . . Prevented . | . . . Parts Restored . | . . . Kills | -11 -10 -9 ------- Run | Yrd Mat Mat Combat Hostiles Destroyed 7 | . 3 4 Guns 1 | . . 1 AOE 6 | . 3 3 Classes Destroyed 9 | . 5 4 Worker 3 | . 1 2 Builder 1 | . 1 . Hauler 1 | . . 1 Recycler 2 | . 1 1 Mechanic 1 | . . 1 Watcher 6 | . 3 3 Swarmer 5 | . 3 2 Grunt 1 | . . 1 Sentry 1 | . . 1 Best Kill Streak 6 | . 4 6 Combat Bots Only 3 | . 3 3 Max Kills in Single Turn 3 | . 3 3 Gunslinging . | . . . Exploded 2 | . 2 1 Melee . | . . . Uniques/NPCs Destroyed . | . . . Combat | -11 -10 -9 -------- Run | Yrd Mat Mat Hostile Shots Fired 108 | . 8 100 Missed 41 | . 4 37 Hits 67 | . 4 63 Projectile 67 | . 4 63 Critical Strikes 2 | . . 2 Damage Taken 1193 | . 373 820 Core 453 | . 49 404 Absorbed by Shields . | . . . Core Remaining (%) 90 | 100 80 . Volleys Fired 25 | . 8 17 Largest 2 | . 2 2 Hottest 60 | . 60 60 Shots Fired 40 | . 17 23 Gun 5 | . . 5 Cannon . | . . . Launcher 35 | . 17 18 Special . | . . . Kinetic . | . . . Thermal 3 | . . 3 Explosive 35 | . 17 18 Electromagnetic 2 | . . 2 Robot Hit Streak 5 | . 1 5 Robot Miss Streak 1 | . 1 1 Penetration Max . | . . . Secondary Targets . | . . . Shots Hit Robots 13 | . 3 10 Core Hits 43 | . 14 29 Critical Kills . | . . . Critical Parts Destroyed . | . . . Critical Strikes . | . . . Melee Attacks . | . . . Impact . | . . . Slashing . | . . . Piercing . | . . . Sneak Attacks . | . . . Combat Hostiles . | . . . Follow-up Attacks . | . . . Damage Inflicted 1505 | . 531 974 Guns 46 | . . 46 Cannons . | . . . Explosions 1456 | . 528 928 Melee . | . . . Ramming 3 | . 3 . Kinetic . | . . . Thermal 27 | . . 27 Explosive 1404 | . 528 876 Electromagnetic 71 | . . 71 Impact . | . . . Slashing . | . . . Piercing . | . . . Highest Corruption 4 | . 4 . Average Corruption 4 | . 4 . Corruption Purged . | . . . Corruption Blocked . | . . . Effects 10 | . 10 . Message Errors 1 | . 1 . Matter Fused 4 | . 4 . Energy Discharges 1 | . 1 . Data Loss (minor) 2 | . 2 . Misfires 1 | . 1 . Alerts 1 | . 1 . Overload Shots . | . . . Overflow Damage 69 | . 22 47 Projectiles . | . . . Explosions 69 | . 22 47 Melee . | . . . Knockbacks . | . . . Impact . | . . . Kinetic . | . . . Secondary . | . . . Self-Inflicted Damage 207 | . 59 148 Shots 8 | . 3 5 Rammed . | . . . Targets Rammed 1 | . 1 . Kicked 1 | . 1 . Crushed . | . . . Highest Temperature 14 | . . 14 Average Temperature 4 | . . 4 Received Heat Transfer 192 | . . 192 Siege Activations . | . . . Martial Activations . | . . . Shielding Activations . | . . . Robots Disrupted . | . . . Combat Hostiles . | . . . Robots Corrupted . | . . . Combat Hostiles . | . . . Parts Fried . | . . . Impact Corruptions . | . . . Robots Melted . | . . . Combat Hostiles . | . . . Parts Melted . | . . . Heat Transferred 111 | . . 111 Parts Sabotaged . | . . . Parts Stolen . | . . . Parts Stripped . | . . . Power Chain Reactions . | . . . Alert | -11 -10 -9 ------- Run | Yrd Mat Mat Maximum Alert Level . | . . . Low Security (%) 100 | 100 100 100 Level 1 . | . . . Level 2 . | . . . Level 3 . | . . . Level 4 . | . . . Level 5 . | . . . High Security . | . . . Max Security . | . . . Peak Influence 191 | . 97 191 Initial 27 | . . 27 Average 40 | . 19 83 Influence Increases 492 | . 192 300 Destroy 0b10 Robot/C 140 | . 60 80 Destroy 0b10 Robot/NC 70 | . 30 40 Destroy Leader 44 | . 16 28 Disable Machine 90 | . 15 75 Destroy Structure 148 | . 71 77 Influence Decreases 365 | . 127 238 Entered New Map 38 | . . 38 Time Decay 227 | . 117 110 Lost Part 100 | . 10 90 Squads Dispatched 1 | . . 1 Investigation . | . . . Extermination . | . . . Reinforcement 1 | . . 1 Assault . | . . . Garrison . | . . . Intercept . | . . . Searches Triggered . | . . . Construction Impeded . | . . . Haulers Reinforced . | . . . Active Scanning Responses . | . . . Cargo Convoy Interrupts . | . . . Stealth | -11 -10 -9 --------- Run | Yrd Mat Mat Distress Signals 2 | . . 2 Communications Jammed . | . . . Distress Signals . | . . . Times Spotted 15 | . 5 10 Peak Tracking Total 4 | . 3 4 Tactical Retreats . | . . . Traps | -11 -10 -9 ------- Run | Yrd Mat Mat Traps Triggered . | . . . Indirectly . | . . . Trap Hack Attempts . | . . . Triggered . | . . . Disarmed . | . . . Reprogrammed . | . . . Reused . | . . . Traps Extracted . | . . . Installed . | . . . Triggered . | . . . Machines | -11 -10 -9 ---------- Run | Yrd Mat Mat Machines Disabled 6 | . 1 5 Max in Single Turn 2 | . 1 2 Machines Repaired . | . . . Machines Dismantled . | . . . Machines Sabotaged . | . . . Overloaded Fab Kills . | . . . Hacking | -11 -10 -9 --------- Run | Yrd Mat Mat Machines Accessed . | . . . Terminals . | . . . Fabricators . | . . . Repair Stations . | . . . Recycling Units . | . . . Scanalyzers . | . . . Garrison Access . | . . . Total Hacks . | . . . Successful . | . . . Failed . | . . . Catastrophic . | . . . Database Lockouts . | . . . Manual . | . . . Terminals . | . . . Fabricators . | . . . Repair Stations . | . . . Recycling Units . | . . . Scanalyzers . | . . . Garrison Access . | . . . Terminal Hacks . | . . . Fabricator Hacks . | . . . Repair Station Hacks . | . . . Recycling Unit Hacks . | . . . Scanalyzer . | . . . Garrison Access Hacks . | . . . Unauthorized Hacks . | . . . Terminals . | . . . Fabricators . | . . . Repair Stations . | . . . Recycling Units . | . . . Scanalyzers . | . . . Garrison Access . | . . . Data Cores Recovered . | . . . Used . | . . . Hacking Detections . | . . . Full Trace Events . | . . . Feedback Events . | . . . Feedback Blocked . | . . . Robot Schematics Acquired . | . . . Robots Built . | . . . Authchips . | . . . Time . | . . . Total Robot Build Rating . | . . . Part Schematics Acquired . | . . . Parts Built . | . . . Authchips . | . . . Time . | . . . Total Part Build Rating . | . . . Part Studies Acquired . | . . . Parts Repaired . | . . . Time . | . . . Parts Recycled . | . . . Recycled Matter . | . . . Retrieved Matter . | . . . Retrieved Components . | . . . Parts Scanalyzed . | . . . Part Schematics Acquired . | . . . Parts Damaged . | . . . Bothacking | -11 -10 -9 ------------ Run | Yrd Mat Mat Used RIF Installer . | . . . Robots Hacked . | . . . Non-combat . | . . . Combat . | . . . Robot Hacks Applied . | . . . Relay Couplers Released . | . . . Fabnet Peak Effective % . | . . . Robots Rewired . | . . . Allies Hacked . | . . . Hacks Repelled . | . . . Allies | -11 -10 -9 -------- Run | Yrd Mat Mat Total Allies . | . . . Largest Group . | . . . Highest-Rated Group . | . . . Highest-Rated Ally . | . . . Total Orders . | . . . Ally Attacks . | . . . Total Damage . | . . . Kills . | . . . Allies Corrupted . | . . . Allies Melted . | . . . Intel | -11 -10 -9 ------- Run | Yrd Mat Mat Active Infowar (turns) 393 | . 164 229 Optics 393 | . 164 229 Seismic 250 | . 45 205 Robot Analysis Total . | . . . Derelict Logs Recovered . | . . . Drone Launches . | . . . Drone Recoveries . | . . . Exploration | -11 -10 -9 ------------- Run | Yrd Mat Mat Turns Passed 697 | 3 465 229 Spaces Moved 318 | 3 199 116 Core 20 | . . 20 Treads . | . . . Legs 296 | 3 199 94 Wheels . | . . . Hover 2 | . . 2 Flight . | . . . Fastest Speed 50 | 120 120 50 Average Speed 131 | 120 142 111 Slowest Speed 190 | 120 190 120 Overloaded Moves . | . . . Propulsion Burnouts . | . . . Robots Hopped . | . . . Potential Cave-ins . | . . . Cave-ins Triggered 1 | . 1 . Exploration Rate (%) 16 | 2 30 16 Regions Visited 2 Branch Regions . Pre-discovered Areas . | . . . Known Exits Taken . | . . . Unknown Exits Taken 2 | 1 1 . Scrap Searched . | . . . Spaces Dug . | . . . Terrain Destroyed 186 | . 91 95 Melee . | . . . Projectile . | . . . AOE 186 | . 91 95 Terrain Rammed . | . . . Walls Destroyed . | . . . Machines Disabled . | . . . Actions | -11 -10 -9 --------- Run | Yrd Mat Mat Total 565 | 2 367 196 Wait 182 | . 140 42 Move 316 | 2 198 116 Hop . | . . . Pick Up 12 | . 5 7 Fast Attach 2 | . 2 . Attach 9 | . 2 7 Detach 4 | . 2 2 Swap 1 | . 1 . Drop 13 | . 8 5 Fire 25 | . 8 17 Melee . | . . . Ram . | . . . Kick 1 | . 1 . Crush . | . . . Escape Stasis . | . . . Rewire . | . . . Trap . | . . . Miscellaneous . | . . . Route ------- -11/Scrapyard -10/Materials -9/Materials History --------- Turn | Location | Event 1 | -11/Scrapyard | Discovered new exit (range 0) 4 | -11/Scrapyard | Entered Materials 153 | -10/Materials | Crushed by falling debris 326 | -10/Materials | Build established: Mutant 381 | -10/Materials | Discovered new exit (range 14) 469 | -10/Materials | Entered another Materials area 469 | -9/Materials | Evolved 2 slots: Power x1, Utility x1 684 | -9/Materials | Core integrity fell below 50% 691 | -9/Materials | Core integrity fell below 20% 698 | -9/Materials | Destroyed by G-34 Mercenary with Small Laser Last Messages --------------- 00667_ K-01 Serf collects debris. 00667_ Backup Laser I destroyed. 00668_ The unstable cave ceiling collapses. 00670_ K-01 Serf collects debris. 00670_ U-05 Engineer builds a Wall. 00672_ O-16 Technician sends out distress signal. 00672_ O-16 Technician: "IFF HANDSHAKE FAILED. SECURING TERMINAL." 00674_ The unstable cave ceiling collapses. 00674_ Seismic Detector destroyed. 00676_ ALERT: Hostiles spotted, dispatching reinforcements to Terminal M004. 00676_ R-06 Scavenger collects Lgt. Armor Plating. 00680_ U-05 Engineer lays Concrete. 00681_ The unstable cave ceiling collapses. 00681_ U-05 Engineer lays Concrete. 00682_ U-05 Engineer builds a Wall. 00687_ U-05 Engineer lays Concrete. 00689_ U-05 Engineer builds a Door. 00694_ U-05 Engineer lays Concrete. 00697_ U-05 Engineer builds a Wall. Map ----- +----------------------------------------------------+ | #?????????????????????????????????????????? | | #?????????????????????????????????????????? | | ##?????????????????????????????????????????? | | #??????????????????????????????????????????? | | #??????????????????????????????????????????? | | #??????????????????????????????????????????? | | #??????????????????????????????????????????? | | #???????????###+####+####### ??????????????? | | ############# ???????????????? | | # # ??????????????? | | # |= # ??????????????????? | | # ! * ] # ###+###??????????????? | | + !== # #??????????????? | | # [ | # """ #??????????????? | | ##########+## # # """ #??????????????? | | ==! ### """ #??????????????? | | ##############u# ## # ##?????????????? | | ## # # """ #?????????????? | | ######## # """ #??????????????? | | #??????# Y """ #??????????????? | | #??????## # # #??????????????? | | #??????## [ " " #??????????????? | | #???????## *! s "R" #??????????????? | | #????????## !*## """ #??????????????? | | #?????????# "= # #??????????????? | | #?????????#### ######@###??????????????? | | #????????????#######????# #????????????????? | | ????????????????????????# #????????????????? | | ????????????????????????# #????????????????? | | ????????????????????????# #????????????????? | | ????????????????????????#g#????????????????? | | ????????????????????????# #????????????????? | | ????????????????????????# #????????????????? | | ????????????????????????+ ????????????????? | | ????????????????????????# ????????????????? | | ????????????????????????? ????????????????? | | ????????????????????????? ????????????????? | | ????????????????????????? ????????????????? | | ????????????????????????? ????????????????? | | ????????????????????????? ????????????????? | | ????????????????????????? ????????????????? | | ????????????????????????? ????????????????? | | ????????????????????????? ????????????????? | | ???????????????????????????????????????????? | | ???????????????????????????????????????????? | | ???????????????????????????????????????????? | | ???????????????????????????????????????????? | | ???????????????????????????????????????????? | | ???????????????????????????????????????????? | | ???????????????????????????????????????????? | +----------------------------------------------------+ Best States ------------- Heat Dissipation 28 Energy Generation 10 Energy Capacity 250 Matter Stores 300 Matter Capacity 300 Sight Range 18 Terrain Scan Density 10 Evasion (%) 55 Targeting Accuracy 5 Item Schematics ----------------- None Robot Schematics ------------------ None Fabricated ------------ Nothing Repaired ---------- Nothing Studied --------- None Alien Tech Used ----------------- None Achievements -------------- Maybe Next Time I'll Detach My Launcher Challenges ------------ None Game ------ Seed StasisProjectionTether Manual? 0 Play Time 00:09:45 Cumulative 14.2 hours Start 2026.08.10 @ 18:57:52 End 2026.08.10 @ 19:05:14 Sessions 1 Manual Loads 0 Difficulty Rogue Special Mode None Game No. 40 Rogue 33 Adventurer 7 Explorer 0 Win Type - Total 0 Types 0/0/0/0/0/0/0/0/0/0 Lore% 10 Gallery% 19 Achievement% 14 Wizard Run 0 Options --------- Layout 0 ASCII 0 Keyboard 0 Movement Mouse Keybinds 0 Fullscreen 1 Font 18/SmallcapsGlow Map View 38x25 Zoom Use 100% Tactical HUD 1 Map Filters NONE Filters NONE Steam 1 RUN: b635e9b2-b352-4a05-b46e-5fe4f1b14aff